[Event "VII Lorca Open 2018"]
[Site "Lorca"]
[Date "2018.12.27"]
[Round "3"]
[White "Huerga Leache, Mikel"]
[Black "Orantes Taboada, Francisco"]
[Result "0-1"]
[ECO "D02"]
[WhiteElo "2448"]
[BlackElo "2295"]
[Annotator "ChessBase"]
[PlyCount "145"]
[EventDate "2018.12.26"]
[EventType "swiss"]
[EventCountry "ESP"]
[SourceTitle "playchess.com"]
[Source "ChessBase"]
[SourceQuality "1"]
[TimeControl "5400+30"]

1. d4 {[%emt 0:00:00]} Nf6 {[%emt 0:00:00]} 2. Bf4 {[%emt 0:00:00]} g6 {[%emt 0:00:00]} 3. e3 {[%emt 0:00:00]} Bg7 {[%emt 0:00:02]} 4. Nf3 {[%emt 0:00:00]} O-O {[%emt 0:00:04]} 5. Be2 {[%emt 0:00:00]} d5 {[%emt 0:00:06]} 6. O-O {[%emt 0:00:02]} c5 {[%emt 0:00:27]} 7. c3 {[%emt 0:00:06]} Nc6 {[%emt 0:00:11]} 8. Ne5 {[%emt 0:00:25]} Nd7 {[%emt 0:01:12]} 9. Nxd7 {[%emt 0:01:46]} Bxd7 {[%emt 0:02:48]} 10. Qb3 {[%emt 0:02:36]} c4 {[%emt 0:08:55]} 11. Qa3 {[%emt 0:06:26]} Re8 {[%emt 0:08:37]} 12. b3 {[%emt 0:01:07]} cxb3 {[%emt 0:00:38]} 13. Qxb3 {[%emt 0:03:43]} e6 {[%emt 0:36:19]} 14. Nd2 {[%emt 0:09:22]} Na5 {[%emt 0:02:22]} 15. Qb4 {[%emt 0:02:36]} Bf8 {[%emt 0:05:17]} 16. Qb2 {[%emt 0:05:33]} Rc8 {[%emt 0:04:10]} 17. Rfc1 {[%emt 0:00:51]} Bc6 {[%emt 0:03:12]} 18. Bf1 {[%emt 0:04:24]} Qe7 {[%emt 0:04:07]} 19. a3 {[%emt 0:03:12]} b6 {[%emt 0:02:18]} 20. Qb1 {[%emt 0:12:23]} Qb7 {[%emt 0:02:40]} 21. h4 {[%emt 0:00:32]} Nc4 {[%emt 0:06:55]} 22. Nxc4 {[%emt 0:01:58]} dxc4 {[%emt 0:00:07]} 23. Qa2 {[%emt 0:00:21]} Bd5 {[%emt 0:01:22]} 24. f3 {[%emt 0:03:54]} f5 {[%emt 0:00:07]} 25. Re1 {[%emt 0:01:04]} Bg7 {[%emt 0:07:35]} 26. Rad1 {[%emt 0:11:41]} e5 {[%emt 0:00:57]} 27. dxe5 {[%emt 0:00:35]} Bxe5 {[%emt 0:00:06]} 28. Bxe5 {[%emt 0:01:07]} Rxe5 {[%emt 0:00:02]} 29. Rd4 {[%emt 0:00:09]} b5 {[%emt 0:01:02]} 30. Qd2 {[%emt 0:01:08]} Bc6 {[%emt 0:00:55]} 31. a4 {[%emt 0:00:56]} a6 {[%emt 0:00:09]} 32. axb5 {[%emt 0:00:50]} axb5 {[%emt 0:00:52]} 33. h5 {[%emt 0:00:33]} Qe7 {[%emt 0:00:29]} 34. Rd6 {[%emt 0:08:35]} Re6 {[%emt 0:00:01]} 35. Rxe6 {[%emt 0:00:15]} Qxe6 {[%emt 0:00:02]} 36. Ra1 {[%emt 0:00:33]} Qe7 {[%emt 0:02:27]} 37. Qd4 {[%emt 0:01:05]} Rd8 {[%emt 0:01:03]} 38. Qb6 {[%emt 0:00:25]} Rd6 {[%emt 0:00:45]} 39. Ra7 {[%emt 0:00:54]} Bd7 {[%emt 0:00:01]} 40. Qc5 {[%emt 0:01:38]} Kf7 {[%emt 0:00:41]} 41. Rc7 {[%emt 0:07:16]} Rd1 {[%emt 0:00:49]} 42. Qb6 {[%emt 0:01:02]} Qd6 {[%emt 0:00:26]} 43. Qa7 {[%emt 0:05:04]} Qd3 {[%emt 0:00:31]} 44. Kh2 {[%emt 0:00:08]} Qd6+ {[%emt 0:00:04]} 45. f4 {[%emt 0:00:29]} Qe7 {[%emt 0:00:47]} 46. Kg3 {[%emt 0:00:10]} g5 {[%emt 0:00:24]} 47. Kh3 {[%emt 0:03:03]} g4+ {[%emt 0:00:44]} 48. Kg3 {[%emt 0:00:01]} Qd6 {[%emt 0:00:13]} 49. Be2 {[%emt 0:00:51]} Rd2 {[%emt 0:00:33]} 50. Kf2 {[%emt 0:00:00]} Ke7 {[%emt 0:00:43]} 51. Kf1 {[%emt 0:02:37]} g3 {[%emt 0:00:21]} 52. Qc5 {[%emt 0:01:48]} Qxc5 53. Rxc5 {[%emt 0:00:01]} Kd6 {[%emt 0:00:31]} 54. Re5 {[%emt 0:00:04]} Rc2 {[%emt 0:00:18]} 55. Bf3 {[%emt 0:01:07]} Rxc3 {[%emt 0:00:16]} 56. e4 {[%emt 0:00:10]} fxe4 {[%emt 0:01:18]} 57. Bxe4 {[%emt 0:00:01]} h6 {[%emt 0:00:09]} 58. Ke2 {[%emt 0:00:25]} b4 {[%emt 0:00:20]} 59. Ra5 {[%emt 0:00:16]} Ra3 {[%emt 0:00:51]} 60. Rd5+ {[%emt 0:00:42]} Ke7 {[%emt 0:00:05]} 61. Re5+ {[%emt 0:00:21]} Kf6 {[%emt 0:00:16]} 62. Rd5 {[%emt 0:00:01]} Bg4+ {[%emt 0:00:16]} 63. Kd2 {[%emt 0:00:00]} c3+ {[%emt 0:00:46]} 64. Kd3 {[%emt 0:00:01]} Ra2 {[%emt 0:00:38]} 65. Rd6+ {[%emt 0:00:11]} Ke7 {[%emt 0:00:16]} 66. Rxh6 {[%emt 0:00:16]} Rd2+ {[%emt 0:01:12]} 67. Ke3 {[%emt 0:00:00]} Re2+ {[%emt 0:00:20]} 68. Kd4 {[%emt 0:00:01]} c2 {[%emt 0:00:47]} 69. Rc6 {[%emt 0:00:01]} b3 {[%emt 0:00:05]} 70. h6 {[%emt 0:01:53]} Rxe4+ {[%emt 0:00:15]} 71. Kxe4 {[%emt 0:00:10]} b2 {[%emt 0:00:04]} 72. h7 {[%emt 0:01:14]} b1=Q {[%emt 0:00:09]} 73. Kd4 {[%emt 0:04:21]} 0-1

[Event "VII Lorca Open 2018"]
[Site "Lorca"]
[Date "2018.12.27"]
[Round "3"]
[White "Alshameary Puente, Ismael"]
[Black "Fernandez Garcia, Gumersindo"]
[Result "1-0"]
[ECO "D15"]
[WhiteElo "2444"]
[BlackElo "2049"]
[Annotator "NA"]
[PlyCount "51"]
[EventDate "2018.12.26"]
[EventType "swiss"]
[EventCountry "ESP"]
[SourceTitle "playchess.com"]
[Source "ChessBase"]
[SourceQuality "1"]
[TimeControl "5400+30"]

1. d4 {[%emt 0:01:39]} d5 {[%emt 0:00:00]} 2. c4 {[%emt 0:00:05]} c6 {[%emt 0:00:00]} 3. Nf3 {[%emt 0:00:06]} Nf6 {[%emt 0:00:00]} 4. Nc3 {[%emt 0:00:06]} dxc4 {[%emt 0:00:05]} 5. e4 {[%emt 0:01:20]} b5 {[%emt 0:00:06]} 6. Be2 {[%emt 0:00:07]} e6 {[%emt 0:09:19]} 7. O-O {[%emt 0:00:21]} b4 {[%emt 0:04:22]} 8. e5 {[%emt 0:00:36]} bxc3 {[%emt 0:04:25]} 9. exf6 {[%emt 0:00:15]} cxb2 {[%emt 0:01:15]} 10. fxg7 {[%emt 0:01:21]} Bxg7 {[%emt 0:06:00]} 11. Bxb2 {[%emt 0:00:15]} Nd7 {[%emt 0:03:51]} 12. Bxc4 {[%emt 0:03:52]} Nb6 {[%emt 0:01:11]} 13. Bd3 {[%emt 0:00:22]} Bb7 {[%emt 0:04:21]} 14. a4 {[%emt 0:08:19]} Nd5 {[%emt 0:06:04]} 15. a5 {[%emt 0:02:03]} a6 {[%emt 0:14:52]} 16. Ne5 {[%emt 0:02:44]} Bxe5 {[%emt 0:01:16]} 17. dxe5 {[%emt 0:00:08]} Rb8 {[%emt 0:06:04]} 18. Qg4 {[%emt 0:01:50]} Kd7 {[%emt 0:05:06]} 19. Rfd1 {[%emt 0:02:04]} Rg8 {[%emt 0:00:47]} 20. Qf3 {[%emt 0:00:11]} Rg7 {[%emt 0:00:41]} 21. Ba3 {[%emt 0:04:24]} Qg5 {[%emt 0:09:38]} 22. Rab1 {[%emt 0:01:18]} c5 {[%emt 0:04:04]} 23. Be4 {[%emt 0:15:46]} Qg4 {[%emt 0:12:24]} 24. Rxb7+ {[%emt 0:02:52]} Rxb7 {[%emt 0:01:01]} 25. Bxd5 {[%emt 0:00:06]} Rc7 {[%emt 0:03:45]} 26. Bxe6+ {[%emt 0:00:10]} 1-0

[Event "VII Lorca Open 2018"]
[Site "Lorca"]
[Date "2018.12.27"]
[Round "3"]
[White "Tejedor Fuente, Enrique"]
[Black "Guerra Rivera, Salvador"]
[Result "1/2-1/2"]
[ECO "A20"]
[WhiteElo "2428"]
[BlackElo "2343"]
[Annotator "NA"]
[PlyCount "81"]
[EventDate "2018.12.26"]
[EventType "swiss"]
[EventCountry "ESP"]
[SourceTitle "playchess.com"]
[Source "ChessBase"]
[SourceQuality "1"]
[TimeControl "5400+30"]

1. c4 {[%emt 0:01:06]} e5 {[%emt 0:00:03]} 2. g3 {[%emt 0:00:51]} Nf6 {[%emt 0:00:41]} 3. Bg2 {[%emt 0:00:20]} c6 {[%emt 0:00:16]} 4. Nf3 {[%emt 0:03:21]} e4 {[%emt 0:00:45]} 5. Nd4 {[%emt 0:00:02]} d5 {[%emt 0:00:19]} 6. cxd5 {[%emt 0:00:29]} Qxd5 {[%emt 0:00:07]} 7. Nb3 {[%emt 0:09:06]} Qh5 {[%emt 0:01:09]} 8. h3 {[%emt 0:00:23]} Bd6 {[%emt 0:04:35]} 9. Nc3 {[%emt 0:01:46]} Qg6 {[%emt 0:00:23]} 10. d3 {[%emt 0:11:28]} exd3 {[%emt 0:08:26]} 11. e4 {[%emt 0:00:33]} O-O {[%emt 0:04:48]} 12. Qxd3 {[%emt 0:01:08]} Bc7 {[%emt 0:01:08]} 13. O-O {[%emt 0:14:02]} Re8 {[%emt 0:05:07]} 14. Bf4 {[%emt 0:16:27]} Bxf4 {[%emt 0:03:39]} 15. gxf4 {[%emt 0:00:01]} Nh5 {[%emt 0:03:17]} 16. Qf3 {[%emt 0:04:04]} Qh6 {[%emt 0:01:48]} 17. Ne2 {[%emt 0:00:47]} Nd7 {[%emt 0:02:31]} 18. Rfd1 {[%emt 0:08:48]} Nf8 {[%emt 0:05:18]} 19. f5 {[%emt 0:00:44]} Nd7 {[%emt 0:04:33]} 20. Qd3 {[%emt 0:03:46]} Nf4 {[%emt 0:14:40]} 21. Nxf4 {[%emt 0:00:24]} Qxf4 {[%emt 0:00:02]} 22. Qd6 {[%emt 0:02:47]} Ne5 {[%emt 0:05:58]} 23. Nd4 {[%emt 0:01:58]} Nd3 {[%emt 0:01:30]} 24. Qxf4 {[%emt 0:00:31]} Nxf4 {[%emt 0:00:02]} 25. f3 {[%emt 0:01:43]} g6 {[%emt 0:02:29]} 26. Bf1 {[%emt 0:03:09]} gxf5 {[%emt 0:01:02]} 27. exf5 {[%emt 0:00:09]} Bd7 {[%emt 0:02:00]} 28. Nb5 {[%emt 0:01:12]} Bxf5 {[%emt 0:09:30]} 29. Nc7 {[%emt 0:00:32]} Nxh3+ {[%emt 0:00:11]} 30. Bxh3 {[%emt 0:00:51]} Bxh3 {[%emt 0:00:02]} 31. Kf2 {[%emt 0:05:11]} Rac8 {[%emt 0:01:48]} 32. Nxe8 {[%emt 0:00:02]} Rxe8 {[%emt 0:00:04]} 33. Rg1+ {[%emt 0:00:58]} Kf8 {[%emt 0:00:41]} 34. Rad1 {[%emt 0:03:39]} Be6 {[%emt 0:02:12]} 35. a3 {[%emt 0:00:05]} h6 {[%emt 0:02:26]} 36. Rd4 {[%emt 0:01:02]} Bd5 {[%emt 0:00:29]} 37. Rdg4 {[%emt 0:00:22]} Re6 {[%emt 0:00:58]} 38. Rg8+ {[%emt 0:02:04]} Ke7 {[%emt 0:00:01]} 39. Ra8 {[%emt 0:02:50]} a6 {[%emt 0:00:23]} 40. Rb8 {[%emt 0:00:45]} c5 {[%emt 0:00:06]} 41. Rc8 {[%emt 0:00:27]} 1/2-1/2

[Event "VII Lorca Open 2018"]
[Site "Lorca"]
[Date "2018.12.27"]
[Round "3"]
[White "Bjerre, Jonas Buhl"]
[Black "Aguilar, Andres"]
[Result "1-0"]
[ECO "B66"]
[WhiteElo "2421"]
[BlackElo "2307"]
[Annotator "NA"]
[PlyCount "91"]
[EventDate "2018.12.26"]
[EventType "swiss"]
[EventCountry "ESP"]
[SourceTitle "playchess.com"]
[Source "ChessBase"]
[SourceQuality "1"]
[TimeControl "5400+30"]

1. e4 {[%emt 0:00:00]} c5 {[%emt 0:02:37]} 2. Nf3 {[%emt 0:00:00]} Nc6 {[%emt 0:00:20]} 3. d4 {[%emt 0:00:08]} cxd4 {[%emt 0:00:07]} 4. Nxd4 {[%emt 0:00:03]} Nf6 {[%emt 0:00:08]} 5. Nc3 {[%emt 0:00:11]} d6 {[%emt 0:00:07]} 6. Bg5 {[%emt 0:00:38]} e6 {[%emt 0:00:19]} 7. Qd2 {[%emt 0:00:26]} a6 {[%emt 0:00:09]} 8. O-O-O {[%emt 0:00:18]} h6 {[%emt 0:00:16]} 9. Be3 {[%emt 0:01:59]} Nxd4 {[%emt 0:00:46]} 10. Bxd4 {[%emt 0:00:18]} b5 {[%emt 0:00:17]} 11. Kb1 {[%emt 0:01:00]} Be7 {[%emt 0:14:28]} 12. f3 {[%emt 0:00:51]} Rb8 {[%emt 0:00:58]} 13. g4 {[%emt 0:01:27]} b4 {[%emt 0:01:34]} 14. Ne2 {[%emt 0:00:36]} e5 {[%emt 0:00:15]} 15. Bf2 {[%emt 0:01:03]} Be6 {[%emt 0:09:55]} 16. Ng3 {[%emt 0:00:32]} Qa5 {[%emt 0:08:21]} 17. b3 {[%emt 0:01:10]} d5 {[%emt 0:03:50]} 18. Nf5 {[%emt 0:00:36]} Bf8 {[%emt 0:01:01]} 19. Qe2 {[%emt 0:05:01]} Qc7 {[%emt 0:28:08]} 20. Qxa6 {[%emt 0:10:16]} Qb7 {[%emt 0:00:29]} 21. Nd6+ {[%emt 0:14:08]} Bxd6 {[%emt 0:00:17]} 22. Qxd6 {[%emt 0:00:04]} Rd8 {[%emt 0:12:17]} 23. Qc5 {[%emt 0:04:29]} d4 {[%emt 0:06:17]} 24. Bb5+ {[%emt 0:09:54]} Nd7 {[%emt 0:00:35]} 25. Qxb4 {[%emt 0:06:43]} f6 {[%emt 0:00:20]} 26. c3 {[%emt 0:02:29]} Kf7 {[%emt 0:02:49]} 27. cxd4 {[%emt 0:01:21]} exd4 {[%emt 0:01:09]} 28. Rxd4 {[%emt 0:00:53]} Rb8 {[%emt 0:00:30]} 29. a4 {[%emt 0:03:21]} Ne5 {[%emt 0:00:27]} 30. Rd6 {[%emt 0:08:17]} Rhc8 {[%emt 0:02:12]} 31. Bg3 {[%emt 0:07:17]} Qc7 {[%emt 0:02:55]} 32. Rd2 {[%emt 0:01:43]} Qc3 {[%emt 0:01:33]} 33. Qxc3 {[%emt 0:00:23]} Rxc3 {[%emt 0:00:01]} 34. f4 {[%emt 0:00:33]} Nf3 {[%emt 0:00:48]} 35. Rb2 {[%emt 0:05:42]} Rb7 {[%emt 0:00:06]} 36. Rc1 {[%emt 0:02:26]} Rxc1+ {[%emt 0:00:28]} 37. Kxc1 {[%emt 0:00:03]} Nd4 {[%emt 0:00:03]} 38. f5 {[%emt 0:03:24]} Bxb3 {[%emt 0:00:38]} 39. Bc4+ {[%emt 0:00:59]} Ke8 {[%emt 0:00:32]} 40. Bxb3 {[%emt 0:00:23]} Nxb3+ {[%emt 0:00:43]} 41. Kc2 {[%emt 0:00:28]} Nd4+ {[%emt 0:00:38]} 42. Kc3 {[%emt 0:00:09]} Rxb2 {[%emt 0:00:54]} 43. Kxb2 {[%emt 0:00:04]} Kd7 {[%emt 0:00:13]} 44. Kc3 {[%emt 0:00:20]} Ne2+ {[%emt 0:00:20]} 45. Kd3 {[%emt 0:00:47]} Nc1+ {[%emt 0:00:11]} 46. Kc4 {[%emt 0:00:06]} 1-0

[Event "VII Lorca Open 2018"]
[Site "Lorca"]
[Date "2018.12.27"]
[Round "3"]
[White "Domingo Nunez, Alejandro"]
[Black "Jimenez Ruano, Adrian"]
[Result "1/2-1/2"]
[ECO "C54"]
[WhiteElo "2404"]
[BlackElo "2245"]
[Annotator "NA"]
[PlyCount "44"]
[EventDate "2018.12.26"]
[EventType "swiss"]
[EventCountry "ESP"]
[SourceTitle "playchess.com"]
[Source "ChessBase"]
[SourceQuality "1"]
[TimeControl "5400+30"]

1. e4 {[%emt 0:00:00]} e5 {[%emt 0:00:00]} 2. Nf3 {[%emt 0:00:00]} Nc6 {[%emt 0:00:00]} 3. Bc4 {[%emt 0:00:00]} Bc5 {[%emt 0:00:04]} 4. c3 {[%emt 0:00:19]} Nf6 {[%emt 0:00:22]} 5. d3 {[%emt 0:00:12]} a6 {[%emt 0:00:16]} 6. O-O {[%emt 0:00:15]} Ba7 {[%emt 0:00:10]} 7. Re1 {[%emt 0:01:06]} d6 {[%emt 0:00:13]} 8. Bb3 {[%emt 0:00:39]} h6 {[%emt 0:00:18]} 9. Nbd2 {[%emt 0:02:07]} O-O {[%emt 0:04:54]} 10. h3 {[%emt 0:00:19]} Na5 {[%emt 0:00:36]} 11. Bc2 {[%emt 0:01:30]} c5 {[%emt 0:00:16]} 12. Nf1 {[%emt 0:02:48]} b5 {[%emt 0:02:41]} 13. Ng3 {[%emt 0:06:31]} Be6 {[%emt 0:01:48]} 14. Nh2 {[%emt 0:08:15]} Qd7 {[%emt 0:04:32]} 15. f4 {[%emt 0:09:26]} exf4 {[%emt 0:06:49]} 16. Bxf4 {[%emt 0:01:25]} Nc6 {[%emt 0:00:18]} 17. Kh1 {[%emt 0:08:21]} Nh7 {[%emt 0:03:39]} 18. Qf3 {[%emt 0:18:00]} d5 {[%emt 0:08:41]} 19. Rad1 {[%emt 0:09:28]} d4 {[%emt 0:00:50]} 20. Bb3 {[%emt 0:02:32]} Bb8 {[%emt 0:05:08]} 21. Nh5 {[%emt 0:06:49]} Bxf4 {[%emt 0:06:03]} 22. Qxf4 {[%emt 0:01:56]} Bxb3 {[%emt 0:03:20]} 1/2-1/2

[Event "VII Lorca Open 2018"]
[Site "Lorca"]
[Date "2018.12.27"]
[Round "3"]
[White "Merario Alarcon, Andres"]
[Black "Svetushkin, Dmitry"]
[Result "1-0"]
[ECO "E11"]
[WhiteElo "2404"]
[BlackElo "2592"]
[Annotator "ChessBase"]
[PlyCount "103"]
[EventDate "2018.12.26"]
[EventType "swiss"]
[EventCountry "ESP"]
[SourceTitle "playchess.com"]
[Source "ChessBase"]
[SourceQuality "1"]
[TimeControl "5400+30"]

1. d4 {[%emt 0:00:00]} Nf6 {[%emt 0:00:00]} 2. c4 {[%emt 0:00:00]} e6 {[%emt 0:00:00]} 3. Nf3 {[%emt 0:00:00]} Bb4+ {[%emt 0:00:05]} 4. Nbd2 {[%emt 0:00:03]} O-O {[%emt 0:00:09]} 5. a3 {[%emt 0:00:12]} Be7 {[%emt 0:00:08]} 6. e4 {[%emt 0:00:08]} d6 {[%emt 0:00:06]} 7. e5 {[%emt 0:00:29]} Nfd7 {[%emt 0:01:34]} 8. Ne4 {[%emt 0:00:13]} Nc6 {[%emt 0:05:38]} 9. Bf4 {[%emt 0:00:24]} f5 {[%emt 0:04:09]} 10. exf6 {[%emt 0:00:27]} Nxf6 {[%emt 0:00:07]} 11. Nc3 {[%emt 0:06:54]} Qe8 {[%emt 0:06:44]} 12. Be2 {[%emt 0:09:11]} e5 {[%emt 0:07:03]} 13. dxe5 {[%emt 0:02:48]} dxe5 {[%emt 0:00:08]} 14. Nxe5 {[%emt 0:06:59]} Be6 {[%emt 0:06:06]} 15. Nxc6 {[%emt 0:06:13]} Qxc6 {[%emt 0:00:05]} 16. O-O {[%emt 0:00:55]} Bxc4 {[%emt 0:03:39]} 17. Bf3 {[%emt 0:06:43]} Qb6 {[%emt 0:02:29]} 18. Re1 {[%emt 0:04:17]} Bc5 {[%emt 0:11:58]} 19. Bg3 {[%emt 0:00:43]} Rad8 {[%emt 0:01:36]} 20. Qc1 {[%emt 0:01:49]} Bb3 {[%emt 0:02:19]} 21. Re5 {[%emt 0:09:30]} Nd7 {[%emt 0:15:18]} 22. Nd5 {[%emt 0:08:31]} Nxe5 {[%emt 0:03:20]} 23. Nxb6 {[%emt 0:00:05]} Nxf3+ {[%emt 0:00:08]} 24. gxf3 {[%emt 0:00:02]} Bxb6 {[%emt 0:02:57]} 25. Qc3 {[%emt 0:03:05]} Bf7 {[%emt 0:05:35]} 26. Be5 {[%emt 0:05:33]} Bg6 {[%emt 0:00:28]} 27. Qb3+ {[%emt 0:04:47]} Bf7 {[%emt 0:01:40]} 28. Qc3 {[%emt 0:00:13]} Rd5 {[%emt 0:01:05]} 29. Re1 {[%emt 0:02:09]} Rfd8 {[%emt 0:01:23]} 30. Bg3 {[%emt 0:06:06]} Rd3 {[%emt 0:00:52]} 31. Qc2 {[%emt 0:00:54]} R8d7 {[%emt 0:04:15]} 32. Re7 {[%emt 0:04:10]} c6 {[%emt 0:05:42]} 33. Rxd7 {[%emt 0:04:04]} Rxd7 {[%emt 0:00:04]} 34. Qf5 {[%emt 0:00:39]} Rd8 {[%emt 0:04:05]} 35. Qg5 {[%emt 0:00:29]} Rd1+ {[%emt 0:01:56]} 36. Kg2 {[%emt 0:00:02]} Bd8 {[%emt 0:00:05]} 37. Qg4 {[%emt 0:01:26]} h5 {[%emt 0:00:09]} 38. Qc8 {[%emt 0:01:19]} Kh7 {[%emt 0:01:35]} 39. Qxb7 {[%emt 0:01:51]} Kg8 {[%emt 0:00:50]} 40. h4 {[%emt 0:01:49]} Bf6 {[%emt 0:00:13]} 41. Qxc6 {[%emt 0:00:22]} Rd3 {[%emt 0:00:59]} 42. Qe4 {[%emt 0:00:50]} Rd5 {[%emt 0:02:03]} 43. b4 {[%emt 0:00:17]} a5 {[%emt 0:00:10]} 44. Qc4 {[%emt 0:00:56]} axb4 {[%emt 0:00:13]} 45. axb4 {[%emt 0:00:08]} Rd4 {[%emt 0:00:31]} 46. Qc8+ {[%emt 0:00:28]} Rd8 {[%emt 0:00:03]} 47. Qc7 {[%emt 0:00:25]} Bd5 {[%emt 0:00:51]} 48. Be5 {[%emt 0:00:27]} Rf8 {[%emt 0:01:57]} 49. Bxf6 {[%emt 0:00:02]} gxf6 {[%emt 0:00:06]} 50. b5 {[%emt 0:00:39]} Kh8 {[%emt 0:00:58]} 51. b6 {[%emt 0:01:08]} Rg8+ {[%emt 0:00:06]} 52. Kf1 {[%emt 0:00:02]} 1-0

[Event "VII Lorca Open 2018"]
[Site "Lorca"]
[Date "2018.12.27"]
[Round "3"]
[White "Sabuk, Piotr"]
[Black "Ibarra Jerez, Jose Carlos"]
[Result "0-1"]
[ECO "D31"]
[WhiteElo "2391"]
[BlackElo "2558"]
[Annotator "ChessBase"]
[PlyCount "108"]
[EventDate "2018.12.26"]
[EventType "swiss"]
[EventCountry "ESP"]
[SourceTitle "playchess.com"]
[Source "ChessBase"]
[SourceQuality "1"]
[TimeControl "5400+30"]

1. d4 {[%emt 0:00:00]} d5 {[%emt 0:00:14]} 2. c4 {[%emt 0:00:00]} e6 {[%emt 0:00:30]} 3. Nf3 {[%emt 0:00:16]} a6 {[%emt 0:00:28]} 4. cxd5 {[%emt 0:08:21]} exd5 {[%emt 0:00:47]} 5. Nc3 {[%emt 0:00:27]} c6 {[%emt 0:01:53]} 6. Qc2 {[%emt 0:03:58]} Bd6 {[%emt 0:03:34]} 7. Bg5 {[%emt 0:03:21]} f6 {[%emt 0:01:49]} 8. Bd2 {[%emt 0:04:25]} Ne7 {[%emt 0:15:19]} 9. e4 {[%emt 0:04:37]} dxe4 {[%emt 0:01:12]} 10. Nxe4 {[%emt 0:03:25]} Nd5 {[%emt 0:01:28]} 11. O-O-O {[%emt 0:07:06]} Be7 {[%emt 0:04:16]} 12. Bd3 {[%emt 0:04:15]} Nd7 {[%emt 0:06:32]} 13. g4 {[%emt 0:18:17]} Nf8 {[%emt 0:04:44]} 14. Rhg1 {[%emt 0:02:56]} Qc7 {[%emt 0:06:10]} 15. g5 {[%emt 0:02:51]} f5 {[%emt 0:08:54]} 16. Nc5 {[%emt 0:03:53]} b6 {[%emt 0:04:38]} 17. Na4 {[%emt 0:00:22]} g6 {[%emt 0:01:50]} 18. Kb1 {[%emt 0:04:02]} Ne6 {[%emt 0:04:58]} 19. Rge1 {[%emt 0:03:35]} Qd6 {[%emt 0:06:24]} 20. Bc4 {[%emt 0:02:15]} Rb8 {[%emt 0:02:28]} 21. Ne5 {[%emt 0:05:10]} Bb7 {[%emt 0:05:23]} 22. Nxb6 {[%emt 0:07:04]} Nxb6 {[%emt 0:03:08]} 23. Nxg6 {[%emt 0:02:10]} Nxd4 {[%emt 0:01:19]} 24. Rxe7+ {[%emt 0:08:37]} Qxe7 {[%emt 0:00:10]} 25. Qc3 {[%emt 0:00:32]} hxg6 {[%emt 0:01:11]} 26. Re1 {[%emt 0:00:17]} Qxe1+ {[%emt 0:00:24]} 27. Bxe1 {[%emt 0:00:01]} c5 {[%emt 0:01:13]} 28. Qg3 {[%emt 0:00:21]} Kd7 {[%emt 0:00:30]} 29. Bd3 {[%emt 0:01:20]} Bd5 {[%emt 0:01:33]} 30. Bc3 {[%emt 0:00:29]} Na4 {[%emt 0:00:50]} 31. Bxd4 {[%emt 0:00:17]} cxd4 {[%emt 0:00:08]} 32. b3 {[%emt 0:00:43]} Rhe8 {[%emt 0:01:03]} 33. Qh4 {[%emt 0:00:33]} Nc3+ {[%emt 0:02:19]} 34. Kb2 {[%emt 0:00:32]} Be4 {[%emt 0:00:41]} 35. Bc4 {[%emt 0:00:30]} f4 {[%emt 0:03:06]} 36. Qxf4 {[%emt 0:00:29]} Rf8 {[%emt 0:00:19]} 37. Qg4+ {[%emt 0:00:22]} Kc7 {[%emt 0:00:16]} 38. f4 {[%emt 0:00:34]} Rb6 {[%emt 0:00:29]} 39. Qh4 {[%emt 0:00:32]} Rd6 {[%emt 0:00:53]} 40. a4 {[%emt 0:00:30]} Nd1+ {[%emt 0:00:26]} 41. Ka3 {[%emt 0:00:33]} Ne3 {[%emt 0:00:13]} 42. f5 {[%emt 0:00:28]} Bxf5 {[%emt 0:01:02]} 43. Qf4 {[%emt 0:00:24]} Re8 {[%emt 0:00:37]} 44. Bxa6 {[%emt 0:00:17]} d3 {[%emt 0:00:51]} 45. Bxd3 {[%emt 0:00:17]} Bxd3 {[%emt 0:00:10]} 46. Qf7+ {[%emt 0:00:22]} Kd8 {[%emt 0:00:07]} 47. h4 {[%emt 0:00:47]} Bf5 {[%emt 0:00:47]} 48. h5 {[%emt 0:00:39]} gxh5 {[%emt 0:00:12]} 49. Qxh5 {[%emt 0:00:14]} Nc2+ {[%emt 0:00:31]} 50. Kb2 {[%emt 0:00:06]} Nd4 {[%emt 0:00:06]} 51. Kc3 {[%emt 0:01:21]} Re3+ {[%emt 0:00:23]} 52. Kc4 {[%emt 0:00:27]} Rh3 {[%emt 0:01:33]} 53. Qd1 {[%emt 0:00:28]} Be6+ {[%emt 0:00:13]} 54. Kc5 {[%emt 0:00:09]} Rd5+ {[%emt 0:00:13] Kxd4 [%clk 0:00:00]} 0-1

[Event "VII Lorca Open 2018"]
[Site "Lorca"]
[Date "2018.12.27"]
[Round "3"]
[White "Medarde Santiago, Luis Marcos"]
[Black "Nasuta, Grzegorz"]
[Result "1/2-1/2"]
[ECO "B23"]
[WhiteElo "2386"]
[BlackElo "2530"]
[Annotator "ChessBase"]
[PlyCount "56"]
[EventDate "2018.12.26"]
[EventType "swiss"]
[EventCountry "ESP"]
[SourceTitle "playchess.com"]
[Source "ChessBase"]
[SourceQuality "1"]
[TimeControl "5400+30"]

1. e4 {[%emt 0:00:26]} c5 {[%emt 0:00:00]} 2. Nc3 {[%emt 0:00:07]} d6 {[%emt 0:00:00]} 3. f4 {[%emt 0:00:33]} Nc6 {[%emt 0:00:00]} 4. Bb5 {[%emt 0:01:35]} Bd7 {[%emt 0:00:00]} 5. Nf3 {[%emt 0:00:22]} g6 {[%emt 0:00:07]} 6. O-O {[%emt 0:00:30]} Bg7 {[%emt 0:00:04]} 7. Bc4 {[%emt 0:01:09]} e6 {[%emt 0:09:05]} 8. d3 {[%emt 0:02:47]} Nge7 {[%emt 0:01:33]} 9. Qe1 {[%emt 0:00:17]} Na5 {[%emt 0:12:56]} 10. a3 {[%emt 0:06:59]} Nxc4 {[%emt 0:10:46]} 11. dxc4 {[%emt 0:00:02]} Bc6 {[%emt 0:00:39]} 12. f5 {[%emt 0:08:56]} gxf5 {[%emt 0:13:26]} 13. Bg5 {[%emt 0:23:04]} fxe4 {[%emt 0:10:49]} 14. Nxe4 {[%emt 0:00:24]} Bxe4 {[%emt 0:00:07]} 15. Qxe4 {[%emt 0:00:05]} Qd7 {[%emt 0:00:08]} 16. c3 {[%emt 0:01:28]} O-O-O {[%emt 0:05:04]} 17. Rad1 {[%emt 0:00:15]} h6 {[%emt 0:13:40]} 18. Bh4 {[%emt 0:01:40]} Rde8 {[%emt 0:10:57]} 19. Rd3 {[%emt 0:05:14]} Ng6 {[%emt 0:05:37]} 20. Rfd1 {[%emt 0:08:25]} f5 {[%emt 0:02:19]} 21. Qe3 {[%emt 0:02:48]} Bf8 {[%emt 0:00:01]} 22. Qxc5+ {[%emt 0:01:41]} dxc5 {[%emt 0:02:14]} 23. Rxd7 {[%emt 0:00:01]} Nxh4 {[%emt 0:00:08]} 24. Nxh4 {[%emt 0:00:22]} Rg8 {[%emt 0:00:01]} 25. Nf3 {[%emt 0:02:46]} Rg7 {[%emt 0:00:36]} 26. R7d3 {[%emt 0:02:19]} Be7 {[%emt 0:02:43]} 27. Re1 {[%emt 0:02:21]} Bd8 {[%emt 0:00:00]} 28. Rde3 {[%emt 0:00:39]} Rge7 {[%emt 0:00:25]} 1/2-1/2